Cogmind - Beta 16 @@@ ROGUE MODE // 2025.11.01 @ 03:05:35 Player: alice_fexa Result: Destroyed by 3U-F3H(R) with Subdweller Laser Performance ------------- Evolutions (0) 0 Regions Visited (3) 600 Robots Destroyed (34) 170 Value Destroyed (826) 826 Prototype IDs (12) 240 Alien Tech Used (0) 0 Bonus (81) 81 TOTAL SCORE: 1917 Bonus ------- Follower Combat Kills 81 Cogmind --------- Core Integrity 0/250 Matter 280/300 Energy 140/170 System Corruption 0% Temperature Cool (90) Movement Treading (480) Ox4 Location -10/Subcaves Parts ------- > --- POWER (1) -------- Makeshift Power Source > --- PROPULSION (2) --- Light Treads Wheel > --- UTILITY (2) ------ Disposable Heat Sink Huge Storage Unit > --- WEAPON (2) ------- Subdweller Laser Subdweller Beam Cannon > --- INVENTORY (25) --- Light Ion Engine Wheel Wheel Flightbrick Heat Sink Heat Sink Large Matter Pod (150) Light Armor Plating EM Pulse Gun Makeshift Laser EM Pulse Cannon Subdweller Beam Cannon Battle Rifle Battle Rifle Light Cannon Light Cannon Assault Cannon Rocket Launcher Improved Grenade Launcher Missile Launcher Heavy Mace Peak State ------------ > --- POWER ------------ Makeshift Power Source > --- PROPULSION ------- Light Treads Wheel > --- UTILITY ---------- Disposable Heat Sink Huge Storage Unit > --- WEAPON ----------- Subdweller Laser Subdweller Beam Cannon > --- INVENTORY -------- Light Ion Engine Light Treads Wheel Wheel Flightbrick Heat Sink Heat Sink Large Matter Pod Light Armor Plating EM Pulse Gun Makeshift Laser EM Pulse Cannon Subdweller Beam Cannon Battle Rifle Battle Rifle Light Cannon Light Cannon Assault Cannon Rocket Launcher Improved Grenade Launcher Missile Launcher Heavy Mace [Rating: 20] Favorites ----------- Power Ion Engine Engine Ion Engine Propulsion Light Treads Treads Light Treads Wheel Wheel Utility Huge Storage Unit Device Disposable Heat Sink Storage Huge Storage Unit Protection Light Armor Plating Weapon Light Cannon Energy Gun Subdweller Laser Energy Cannon Subdweller Beam Cannon Ballistic Gun Assault Rifle Ballistic Cannon Light Cannon Launcher Grenade Launcher Build | -11 -10 -10 -10 ------- Run | Yrd Mat Min Sub Slots Evolved . | . . . . Power . | . . . . Propulsion . | . . . . Utility . | . . . . Weapon . | . . . . Parts Attached 35 | 6 11 8 10 Power 8 | 1 2 2 3 Engine 8 | 1 2 2 3 Core . | . . . . Reactor . | . . . . Propulsion 6 | 2 1 3 . Treads 3 | 2 . 1 . Leg . | . . . . Wheel 3 | . 1 2 . Hover . | . . . . Flight . | . . . . Utility 9 | 1 4 2 2 Device 1 | . . . 1 Storage 4 | 1 3 . . Processor . | . . . . Hackware . | . . . . Protection 4 | . 1 2 1 Artifact . | . . . . Weapon 12 | 2 4 1 5 Energy Gun 1 | . . . 1 Energy Cannon 2 | . . . 2 Ballistic Gun 2 | 2 . . . Ballistic Cannon 5 | . 2 1 2 Launcher 2 | . 2 . . Special Weapon . | . . . . Impact Weapon . | . . . . Slashing Weapon . | . . . . Piercing Weapon . | . . . . Special Melee Weapon . | . . . . Unidentified Prototypes . | . . . . Parts Lost 10 | . . 4 6 Power 2 | . . 1 1 Propulsion 4 | . . 1 3 Utility 1 | . . 1 . Weapon 3 | . . 1 2 Highest Loss Streak 4 | . . 4 2 To Critical Strikes . | . . . . Average Backups 21 | 2 19 24 23 Power 2 | . 2 3 1 Propulsion 3 | 1 3 4 4 Utility 5 | . 5 5 4 Weapon 10 | . 8 11 13 Tool/Special . | . . . . Unused Backups 29 | . 5 5 19 Power 1 | . . . 1 Propulsion 6 | . 2 1 3 Utility 4 | . . . 4 Weapon 18 | . 3 4 11 Tool/Special . | . . . . Average Slot Usage (%) 99 | . 99 98 99 Engine 13 | . 14 13 14 Treads 15 | . 16 14 13 Wheel 12 | . 11 13 13 Device 3 | . . . 9 Storage 14 | . 14 14 14 Protection 10 | . 13 13 4 Energy Gun 4 | . . . 12 Energy Cannon 3 | . . . 9 Ballistic Gun 2 | . 6 . . Ballistic Cannon 16 | . 21 28 5 Peak Build Rating 20 | 6 10 10 20 Average Rating 11 | 4 8 9 15 On Entrance 6 | . 6 9 10 Avg Prop Armor Cover (%) 10 | . 8 8 12 Naked Turns . | . . . . Heaviest Build 101 | 14 94 94 101 Greatest Support 40 | 40 40 10 10 Greatest Overweight (x) 10 | . 9 9 10 Average Overweight (x) 7 | . 5 8 9 Largest Inventory Capacity 25 | 8 25 25 25 Average Capacity 23 | 6 21 25 25 Most Carried 25 | 4 25 25 25 Average Carried 22 | 2 19 24 24 Final Capacity 25 | 8 25 25 25 Final Carried 25 | 4 25 25 24 Class Distribution -------------------- 85% | Mutant 14% | Scavenger-Mutant Dominant Class ---------------- Mutant | -10/Materials Mutant | -10/Mines Mutant | -10/Subcaves Resources | -11 -10 -10 -10 ----------- Run | Yrd Mat Min Sub Matter Collected 1423 | 266 657 331 169 Remotely . | . . . . Salvage Created 1003 | 56 613 129 205 Parts 49 | 1 32 5 11 Haulers Intercepted 2 | . 2 . . Recyclers Shooed 1 | . 1 . . Parts Field Recycled . | . . . . Retrieved Matter . | . . . . Parts Self-Destructed 2 | . . . 2 Prevented . | . . . . Parts Restored . | . . . . Kills | -11 -10 -10 -10 ------- Run | Yrd Mat Min Sub Combat Hostiles Destroyed 32 | . 15 11 6 Guns 3 | . 2 . 1 Cannons 23 | . 7 11 5 AOE 6 | . 6 . . Classes Destroyed 10 | 1 6 2 1 Worker 1 | . 1 . . Tunneler 1 | . 1 . . Hauler 2 | . 2 . . Recycler 4 | 1 2 1 . Watcher 2 | . 2 . . Swarmer 7 | . 6 1 . Grunt 9 | . 9 . . Demolisher 2 | . . 2 . Subdweller 6 | . . . 6 Assembled 8 | . . 8 . Best Kill Streak 6 | 1 5 6 1 Combat Bots Only 5 | . 5 5 1 Max Kills in Single Turn 3 | 1 3 2 1 Gunslinging . | . . . . Exploded 3 | . 3 . . Melee . | . . . . Uniques/NPCs Destroyed . | . . . . Combat | -11 -10 -10 -10 -------- Run | Yrd Mat Min Sub Hostile Shots Fired 113 | . 37 39 37 Missed 32 | . 13 11 8 Hits 81 | . 24 28 29 Projectile 81 | . 24 28 29 AOE 14 | . . 14 . Damage Taken 1706 | . 284 789 633 Core 267 | . 36 147 84 Absorbed by Shields . | . . . . Ignored by Resistances 24 | . . . 24 Core Remaining (%) 100 | 100 . . . Volleys Fired 129 | 1 49 32 47 Largest 2 | 2 2 2 2 Hottest 140 | 40 60 60 140 Shots Fired 226 | 2 91 64 69 Gun 60 | 2 34 . 24 Cannon 159 | . 50 64 45 Launcher 7 | . 7 . . Special . | . . . . Kinetic 171 | 2 84 64 21 Thermal 48 | . . . 48 Explosive 7 | . 7 . . Electromagnetic . | . . . . Robot Hit Streak 15 | 2 13 6 15 Robot Miss Streak 3 | . 2 3 2 Penetration Max . | . . . . Secondary Targets . | . . . . Shots Hit Robots 131 | 2 59 34 36 Core Hits 61 | 2 31 18 10 Critical Kills 1 | . 1 . . Critical Parts Destroyed . | . . . . Critical Strikes 6 | . 3 2 1 Destroy 2 | . 1 . 1 Blast 4 | . 2 2 . Melee Attacks . | . . . . Impact . | . . . . Slashing . | . . . . Piercing . | . . . . Sneak Attacks . | . . . . Combat Hostiles . | . . . . Follow-up Attacks . | . . . . Damage Inflicted 2728 | 24 1329 657 718 Guns 627 | 24 289 . 314 Cannons 1595 | . 534 657 404 Explosions 506 | . 506 . . Melee . | . . . . Ramming . | . . . . Kinetic 1740 | 24 823 657 236 Thermal 482 | . . . 482 Explosive 506 | . 506 . . Electromagnetic . | . . . . Impact . | . . . . Slashing . | . . . . Piercing . | . . . . Highest Corruption . | . . . . Average Corruption . | . . . . Corruption Purged . | . . . . Corruption Blocked . | . . . . Overload Shots . | . . . . Overflow Damage 19 | . 6 13 . Projectiles 13 | . . 13 . Explosions 6 | . 6 . . Melee . | . . . . Knockbacks 23 | . 11 10 2 Impact . | . . . . Kinetic 22 | . 10 10 2 Secondary 1 | . 1 . . Self-Inflicted Damage 23 | . 23 . . Shots 1 | . 1 . . Rammed . | . . . . Targets Rammed . | . . . . Kicked . | . . . . Crushed . | . . . . Highest Temperature 102 | . 48 74 102 Average Temperature 23 | . 16 22 35 Received Heat Transfer 272 | . 96 26 150 Siege Activations . | . . . . Martial Activations . | . . . . Shielding Activations . | . . . . Robots Disrupted . | . . . . Combat Hostiles . | . . . . Robots Corrupted . | . . . . Combat Hostiles . | . . . . Parts Fried . | . . . . Impact Corruptions . | . . . . Robots Melted . | . . . . Combat Hostiles . | . . . . Parts Melted 1 | . . . 1 Heat Transferred 597 | . . . 597 Parts Sabotaged . | . . . . Parts Stolen . | . . . . Parts Stripped . | . . . . Power Chain Reactions . | . . . . Alert | -11 -10 -10 -10 ------- Run | Yrd Mat Min Sub Maximum Alert Level . | . . . . Low Security (%) 100 | 100 100 100 . Level 1 . | . . . . Level 2 . | . . . . Level 3 . | . . . . Level 4 . | . . . . Level 5 . | . . . . High Security . | . . . . Max Security . | . . . . Peak Influence 125 | 5 125 94 . Initial 38 | . . 38 . Average 28 | 1 33 18 . Influence Increases 743 | 5 511 227 . Destroy 0b10 Robot/C 460 | . 300 160 . Destroy 0b10 Robot/NC 50 | 5 40 5 . Destroy Leader 108 | . 78 30 . Allied During Kill 17 | . . 17 . Successful Hack 30 | . 30 . . Disable Machine 15 | . . 15 . Destroy Structure 48 | . 48 . . Lose Combat Pursuer 15 | . 15 . . Influence Decreases 743 | 5 412 326 . Entered New Map 61 | . . 61 . Time Decay 636 | 5 412 219 . Lost Part 20 | . . 20 . Lost Ally 26 | . . 26 . Squads Dispatched 3 | . 3 . . Investigation 1 | . 1 . . Extermination . | . . . . Reinforcement 2 | . 2 . . Assault . | . . . . Garrison . | . . . . Intercept . | . . . . Searches Triggered . | . . . . Construction Impeded . | . . . . Haulers Reinforced . | . . . . Active Scanning Responses . | . . . . Cargo Convoy Interrupts . | . . . . Stealth | -11 -10 -10 -10 --------- Run | Yrd Mat Min Sub Distress Signals 2 | . 2 . . Communications Jammed . | . . . . Distress Signals . | . . . . Times Spotted 54 | . 28 17 9 Peak Tracking Total 5 | . 3 5 3 Tactical Retreats 2 | . 1 1 . Traps | -11 -10 -10 -10 ------- Run | Yrd Mat Min Sub Traps Triggered 1 | . 1 . . Indirectly . | . . . . Trap Hack Attempts . | . . . . Triggered . | . . . . Disarmed . | . . . . Reprogrammed . | . . . . Reused . | . . . . Traps Extracted . | . . . . Installed . | . . . . Triggered . | . . . . Machines | -11 -10 -10 -10 ---------- Run | Yrd Mat Min Sub Machines Disabled 2 | . . 1 1 Max in Single Turn 1 | . . 1 1 Machines Repaired . | . . . . Machines Dismantled . | . . . . Machines Sabotaged . | . . . . Overloaded Fab Kills . | . . . . Hacking | -11 -10 -10 -10 --------- Run | Yrd Mat Min Sub Machines Accessed 12 | . 10 1 1 Terminals 7 | . 7 . . Fabricators . | . . . . Repair Stations 1 | . 1 . . Recycling Units 2 | . 2 . . Scanalyzers . | . . . . Garrison Access . | . . . . Total Hacks 29 | . 27 1 1 Successful 18 | . 16 1 1 Failed 11 | . 11 . . Catastrophic 1 | . 1 . . Database Lockouts . | . . . . Manual 22 | . 22 . . Terminals 24 | . 24 . . Fabricators . | . . . . Repair Stations 1 | . 1 . . Recycling Units 2 | . 2 . . Scanalyzers . | . . . . Garrison Access . | . . . . Terminal Hacks 7 | . 5 1 1 Robot Analysis 2 | . 2 . . Open Door 1 | . . 1 . Alert Level 1 | . 1 . . Locate Traps 2 | . 2 . . Proto ID Catalog 1 | . . . 1 Fabricator Hacks . | . . . . Repair Station Hacks 1 | . 1 . . Refit 1 | . 1 . . Recycling Unit Hacks 2 | . 2 . . Retrieve Components 2 | . 2 . . Scanalyzer . | . . . . Garrison Access Hacks . | . . . . Unauthorized Hacks 8 | . 8 . . Terminals 8 | . 8 . . Botnet 2 | . 2 . . Operators 1 | . 1 . . Skim 5 | . 5 . . Fabricators . | . . . . Repair Stations . | . . . . Recycling Units . | . . . . Scanalyzers . | . . . . Garrison Access . | . . . . Data Cores Recovered . | . . . . Used . | . . . . Hacking Detections 6 | . 6 . . Full Trace Events . | . . . . Feedback Events . | . . . . Feedback Blocked . | . . . . Robot Schematics Acquired . | . . . . Robots Built . | . . . . Authchips . | . . . . Time . | . . . . Total Robot Build Rating . | . . . . Part Schematics Acquired . | . . . . Parts Built . | . . . . Authchips . | . . . . Time . | . . . . Total Part Build Rating . | . . . . Part Studies Acquired . | . . . . Parts Repaired . | . . . . Time . | . . . . Parts Recycled . | . . . . Recycled Matter . | . . . . Retrieved Matter . | . . . . Retrieved Components 10 | . 10 . . Parts Scanalyzed . | . . . . Part Schematics Acquired . | . . . . Parts Damaged . | . . . . Bothacking | -11 -10 -10 -10 ------------ Run | Yrd Mat Min Sub Used RIF Installer . | . . . . Robots Hacked . | . . . . Non-combat . | . . . . Combat . | . . . . Robot Hacks Applied . | . . . . Relay Couplers Released . | . . . . Fabnet Peak Effective % . | . . . . Robots Rewired . | . . . . Allies Hacked . | . . . . Hacks Repelled . | . . . . Allies | -11 -10 -10 -10 -------- Run | Yrd Mat Min Sub Total Allies 3 | . . 3 . Largest Group 3 | . . 3 . Highest-Rated Group 40 | . . 40 . Highest-Rated Ally 16 | . . 16 . Total Orders . | . . . . Ally Attacks 32 | . . 32 . Total Damage 349 | . . 349 . Kills 5 | . . 5 . Allies Corrupted . | . . . . Allies Melted . | . . . . Intel | -11 -10 -10 -10 ------- Run | Yrd Mat Min Sub Active Infowar (turns) . | . . . . Robot Analysis Total 2 | . 2 . . Derelict Logs Recovered 2 | . . 1 1 Drone Launches . | . . . . Drone Recoveries . | . . . . Exploration | -11 -10 -10 -10 ------------- Run | Yrd Mat Min Sub Turns Passed 5684 | 69 2402 1084 2129 Spaces Moved 2128 | 37 768 440 883 Core 5 | 5 . . . Treads 263 | 32 231 . . Legs . | . . . . Wheels 1860 | . 537 440 883 Hover . | . . . . Flight . | . . . . Fastest Speed 50 | 50 140 200 215 Average Speed 205 | 145 191 214 215 Slowest Speed 230 | 160 215 215 230 Overloaded Moves . | . . . . Propulsion Burnouts . | . . . . Robots Hopped . | . . . . Potential Cave-ins . | . . . . Cave-ins Triggered . | . . . . Exploration Rate (%) 55 | 4 98 67 54 Regions Visited 3 Branch Regions 2 Pre-discovered Areas 2 | . . 1 1 Known Exits Taken 1 | . . 1 . Unknown Exits Taken 2 | 1 1 . . Scrap Searched 5 | . . 2 3 Spaces Dug 2 | . . . 2 Terrain Destroyed 52 | . 44 . 8 Melee . | . . . . Projectile 8 | . . . 8 AOE 44 | . 44 . . Terrain Rammed . | . . . . Walls Destroyed . | . . . . Machines Disabled . | . . . . Actions | -11 -10 -10 -10 --------- Run | Yrd Mat Min Sub Total 3221 | 47 1606 521 1047 Wait 850 | . 738 25 87 Move 2125 | 36 767 439 883 Hop . | . . . . Pick Up 44 | 4 24 9 7 Fast Attach 11 | 6 2 1 2 Attach 9 | . . 3 6 Detach 3 | . 2 . 1 Swap 22 | . 13 4 5 Drop 28 | . 11 8 9 Fire 129 | 1 49 32 47 Melee . | . . . . Ram . | . . . . Kick . | . . . . Crush . | . . . . Escape Stasis . | . . . . Rewire . | . . . . Trap . | . . . . Miscellaneous . | . . . . Route ------- -11/Scrapyard -10/Materials (discovered 6 exits: *Mat x3 / *Min x2 / Sub) -10/Mines (discovered 4 exits: *Mat x2 / Exi / *Sub) -10/Subcaves (discovered 2 exits: [*Mat] / Rec) History --------- Turn | Location | Event 17 | -11/Scrapyard | Discovered new exit (range 15) 70 | -11/Scrapyard | Entered Materials 318 | -10/Materials | Build established: Mutant 442 | -10/Materials | Discovered new exit (range 12) 977 | -10/Materials | Discovered new exit (range 4) 1029 | -10/Materials | Discovered new exit (range 16) 1189 | -10/Materials | Discovered new exit (range 13) 1698 | -10/Materials | Learned 4 Subcaves zone layouts 1762 | -10/Materials | Identified exit to Materials 1762 | -10/Materials | Identified exit to Subcaves 1762 | -10/Materials | Learned location of 1 exit from Materials 1817 | -10/Materials | Learned location of 2 exits from Mines 1861 | -10/Materials | Learned Recycling recycling unit intel 1894 | -10/Materials | Learned Storage emergency access door positions 1935 | -10/Materials | Learned 2 Mines zone layouts 2043 | -10/Materials | Learned location of 1 exit from Storage 2472 | -10/Materials | Entered Mines 2474 | -10/Mines | Identified exit to Exiles 2478 | -10/Mines | Met a Derelict who couldn't figure out how to use a Trap Extractor 2479 | -10/Mines | Met a Derelict bent on vengeance 2591 | -10/Mines | Received a Rocket Launcher from a helpful Derelict 2727 | -10/Mines | Assisted by bots powering up and referring to "LRC-V3" 2908 | -10/Mines | Learned Materials terminal intel 2929 | -10/Mines | Deemed a non-threat by the Exiles lab entrance 3068 | -10/Mines | Assembled infested the area 3140 | -10/Mines | Lost 4 parts (1p1n1u1w) 3164 | -10/Mines | Core integrity fell below 50% 3527 | -10/Mines | Learned location of Storage (-9) 3556 | -10/Mines | Entered Subcaves 3557 | -10/Subcaves | Approached by a straggling Scientist 3557 | -10/Subcaves | Identified exit to Recycling 3644 | -10/Subcaves | Learned location of Zion (-6) 4005 | -10/Subcaves | A swath of the cavern ceiling suddenly collapsed 4253 | -10/Subcaves | Core integrity fell below 20% 4435 | -10/Subcaves | Shifting Twisted Machinery released Sub. Beam Cannon 4546 | -10/Subcaves | Build established: Scavenger-Mutant 4866 | -10/Subcaves | Visited 4L-MR0's lab 4888 | -10/Subcaves | Found Flightbrick 5061 | -10/Subcaves | Shifting Twisted Machinery released Mak. Power Source 5062 | -10/Subcaves | Shifting Twisted Machinery released Mak. Laser 5183 | -10/Subcaves | Discovered new exit (range 7) 5391 | -10/Subcaves | Build established: Mutant 5685 | -10/Subcaves | Destroyed by 3U-F3H(R) with Subdweller Laser Last Messages --------------- Mak. Laser falls loose from the Twisted Machinery. 05082_ Dropped Corrupted Field Laser. 05082_ Acquired Mak. Laser. 05085_ Dropped Ion Engine. 9D-ULG(c): "I think it's somewhere south of here" 05183_ EXIT=FOUND 9D-ULG(c): "I think it's somewhere south of here" 9D-ULG(c): "I think it's somewhere southeast of here" 05407_ DV-CVN(R) destroyed. 05433_ Acquired 10 matter. 05441_ Subatomizers dissect the Ion Engine. 9D-ULG(c): "I think it's somewhere south of here" 05454_ Subatomizers dissect the Ion Engine. 9D-ULG(c): "I think it's somewhere south of here" 05543_ Subatomizers dissect the Disposable Heat Sink. 9D-ULG(c): "I think it's somewhere south of here" 05568_ Subatomizers dissect the Disposable Heat Sink. 9D-ULG(c): "I think it's somewhere southeast of here" 05666_ Lgt. Treads destroyed. 05682_ Sub. Beam Cannon shoots sparks and powers down. Map ----- +----------------------------------------------------+ | ????????????????????????????????????????????###?# | | ???????????????????????????????????????????## #### | | ???????????????????????????????????????????# ### | | ???????????????????????????????????????????# | | ???????????????????????????????????????????# | | ???????????????????????????????????????????# | | ????????????????????????????????#########??# | | ??????????????#????????????????## #### | | ?????????????? ???????????????# ## | | ?????????????## ??????###??###?# ## | | ?????????????#" #?????# #### #??# | | ????????????## "##??## ## #??# ### | | ?????????????" ### #### ##?## | | ???????????????? $ ## #???## | | ??????????????????## #????# ### | | ?????????????????## ###??# #### | | ????????????""""## ##?# ## | | ???????????#""" ### ### | | ???????????# ### ## ### | | ??????????""" # ###### ### ### | | ?????????? ""??## ##???# ### ### | | ?????????????????# #????## #### #?# | | ?????????????????# #?????## #?# #?? | | ?????????????????# ###R##??????## #?# ##?? | | ????????????????# ######R### ### ##?###"#?? | | ???????????????# ????#@ #?####?????# #? | | ?????????????? ????# #??????????# # | | ????????????? ?????# #?????????## | | ???????????? ###????? #?????????? | | ???????????? ???????? ### ?????????? | | ????????????? ????????# ##??### ??????????? | | ???????????????????????#####??????? ?????????? | | ???????????????????????????????????? ??????????? | | ??????????????????????????????????????#??????????? | | ?????????????????????????????????????????????????? | | ?????????????????????????????????????????????????? | | ?????????????????????????????????????????????????? | | ?????????????????????????????????????????????????? | | ?????????????????????????????????????????????????? | | ?????????????????###### #??##" " " "?????????? | | ???????????????? ?##?????? ???#"""" """"?????????? | | ??????????????????????????? ??#####>####?????????? | | ???????????????#???????? ? ?????###????????????? | | ???????????????##?? ?????? ? #?######???????????? | | ????????????????##? ???? ???? ### ## ##??????????? | | ????????????????##??????????? # ##?????????? | | ????????????????#??? ??????? ?????????? | | ????????????????######## ## " " "# ?????????? | | ??????????????????????# # # "" ##?????????? | | ??????????????????????## ## ##?????????? | +----------------------------------------------------+ Best States ------------- Heat Dissipation 25 Coolant Potential 50 Energy Generation 15 Energy Capacity 250 Matter Stores 300 Matter Capacity 300 Sight Range 16 Terrain Scan Density 10 Armor Coverage 150 Resistance: TH 10 Evasion (%) 40 Recoil Reduction 2 Item Schematics ----------------- None Robot Schematics ------------------ None Fabricated ------------ Nothing Repaired ---------- Nothing Studied --------- None Alien Tech Used ----------------- None Achievements -------------- None Challenges ------------ None Game ------ Seed FortressJunkWarhead Manual? 0 Play Time 00:19:24 Cumulative 1597.2 hours Start 2025.11.01 @ 02:46:47 End 2025.11.01 @ 03:05:35 Sessions 1 Manual Loads 0 Difficulty Rogue Special Mode None Game No. 1136 Rogue 1096 Adventurer 40 Explorer 0 Win Type - Total 203 Types 88/11/74/2/2/4/16/2/1/3 Lore% 97 Gallery% 97 Achievement% 79 Wizard Run 0 Options --------- Layout 0 ASCII 0 Keyboard 0 Movement Numpad Keybinds 0 Fullscreen 0 Font 20/Terminus Map View 76x50 Zoom Use 0% Tactical HUD 1 Map Filters NONE Filters NONE Steam 1 RUN: 9d2ffb66-f229-48a0-9534-c0006bbcddd0